Cogmind - Beta 13 @@@ ROGUE MODE // 2024.07.17 @ 18:50:29 Player: Venar246 Result: Self-destructed Performance ------------- Evolutions (2) 1000 Regions Visited (4) 800 Robots Destroyed (31) 155 Value Destroyed (683) 683 Prototype IDs (0) 0 Alien Tech Used (0) 0 Bonus (0) 0 TOTAL SCORE: 2638 Bonus ------- None Cogmind --------- Core Integrity 550/550 Matter 300/300 Energy 250/250 System Corruption 0% Temperature Cool (0) Movement Treading (240) Ox1 Location -8/Materials Parts ------- > --- POWER (1) -------- Ion Engine > --- PROPULSION (4) --- Improved Treads Improved Treads > --- UTILITY (4) ------ High-capacity Storage Unit Light Armor Plating > --- WEAPON (2) ------- Beamcaster Assault Cannon > --- INVENTORY (20) --- Light Ion Engine Light Nuclear Core Improved Treads Improved Treads Cesium-ion Thruster Heat Sink Large Storage Unit Hacking Suite Particle Gun Light Assault Rifle Light Assault Rifle Assault Cannon Mini Grenade Launcher Mini Grenade Launcher Peak State ------------ > --- POWER ------------ Ion Engine > --- PROPULSION ------- Improved Treads Improved Treads > --- UTILITY ---------- High-capacity Storage Unit Light Armor Plating > --- WEAPON ----------- Beamcaster Assault Cannon > --- INVENTORY -------- Light Ion Engine Light Nuclear Core Improved Treads Improved Treads Improved Treads Cesium-ion Thruster Heat Sink Large Storage Unit Hacking Suite Particle Gun Light Assault Rifle Light Assault Rifle Assault Cannon Mini Grenade Launcher Mini Grenade Launcher [Rating: 17] Favorites ----------- Power Ion Engine Engine Ion Engine Propulsion Improved Treads Treads Improved Treads Leg Aluminum Leg Utility Light Armor Plating Storage High-capacity Storage Unit Protection Light Armor Plating Weapon Light Assault Rifle Energy Gun Beamcaster Ballistic Gun Light Assault Rifle Ballistic Cannon Assault Cannon Launcher Grenade Launcher Build | -11 -10 -10 -10 -8 ------- Run | Yrd Mat Min Sub Mat Slots Evolved 4 | . . . . 4 Power . | . . . . . Propulsion 2 | . . . . 2 Utility 2 | . . . . 2 Weapon . | . . . . . Parts Attached 31 | 6 17 7 1 . Power 3 | 1 2 . . . Engine 3 | 1 2 . . . Core . | . . . . . Reactor . | . . . . . Propulsion 12 | 2 8 1 1 . Treads 8 | . 6 1 1 . Leg 4 | 2 2 . . . Wheel . | . . . . . Hover . | . . . . . Flight . | . . . . . Utility 6 | 1 3 2 . . Device . | . . . . . Storage 5 | 1 3 1 . . Processor . | . . . . . Hackware . | . . . . . Protection 1 | . . 1 . . Artifact . | . . . . . Weapon 10 | 2 4 4 . . Energy Gun 4 | 2 1 1 . . Energy Cannon . | . . . . . Ballistic Gun 3 | . 2 1 . . Ballistic Cannon 1 | . . 1 . . Launcher 2 | . 1 1 . . Special Weapon . | . . . . . Impact Weapon . | . . . . . Slashing Weapon . | . . . . . Piercing Weapon . | . . . . . Special Melee Weapon . | . . . . . Unidentified Prototypes . | . . . . . Parts Lost 4 | . 2 1 1 . Power . | . . . . . Propulsion 3 | . 1 1 1 . Utility . | . . . . . Weapon 1 | . 1 . . . Highest Loss Streak 1 | . 1 1 1 . To Critical Strikes . | . . . . . Average Slot Usage (%) 91 | . 84 93 99 . Engine 14 | . 14 14 14 . Treads 25 | . 21 28 27 . Leg 2 | . 6 . . . Storage 13 | . 13 14 14 . Protection 6 | . . 7 14 . Energy Gun 12 | . 10 14 14 . Ballistic Gun 9 | . 16 13 . . Ballistic Cannon 5 | . . . 14 . Naked Turns . | . . . . . Heaviest Build 58 | 13 28 58 58 . Greatest Support 46 | 20 46 46 46 . Greatest Overweight (x) 9 | 2 9 1 1 . Average Overweight (x) . | . . . 1 . Largest Inventory Capacity 30 | 8 30 20 20 . Average Capacity 16 | 6 13 16 20 . Most Carried 15 | 4 14 15 15 . Average Carried 12 | 1 11 14 14 . Final Capacity 20 | 8 15 20 20 20 Final Carried 15 | 4 14 15 14 14 Class Distribution -------------------- 100% | Mutant Dominant Class ---------------- Mutant | -10/Materials Mutant | -10/Mines Mutant | -10/Subcaves Mutant | -8/Materials Resources | -11 -10 -10 -10 -8 ----------- Run | Yrd Mat Min Sub Mat Matter Collected 724 | 123 384 79 138 . Remotely . | . . . . . Salvage Created 977 | . 700 60 217 . Parts 63 | . 39 9 15 . Haulers Intercepted 1 | . 1 . . . Recyclers Shooed 3 | . 3 . . . Parts Field Recycled . | . . . . . Retrieved Matter . | . . . . . Parts Self-Destructed 7 | . . . 7 . Prevented . | . . . . . Kills | -11 -10 -10 -10 -8 ------- Run | Yrd Mat Min Sub Mat Combat Hostiles Destroyed 23 | . 11 6 6 . Guns 15 | . 8 4 3 . Cannons 3 | . . . 3 . AOE 5 | . 3 2 . . Classes Destroyed 7 | . 6 . 1 . Worker 2 | . 2 . . . Hauler 1 | . 1 . . . Recycler 3 | . 3 . . . Operator 2 | . 2 . . . Swarmer 9 | . 3 6 . . Grunt 10 | . 8 . 2 . Subdweller 4 | . . . 4 . Best Kill Streak 3 | . 3 3 3 . Combat Bots Only 3 | . 3 3 3 . Max Kills in Single Turn 3 | . 3 2 1 . Gunslinging . | . . . . . Exploded 3 | . 3 1 . . Melee . | . . . . . Uniques/NPCs Destroyed . | . . . . . Combat | -11 -10 -10 -10 -8 -------- Run | Yrd Mat Min Sub Mat Hostile Shots Fired 107 | . 60 23 24 . Missed 25 | . 10 7 8 . Damage Taken 1150 | . 650 252 248 . Core 243 | . 154 50 39 . Absorbed by Shields . | . . . . . Core Remaining (%) 51 | 100 . . 2 . Volleys Fired 104 | . 72 15 17 . Largest 2 | . 2 2 2 . Hottest 119 | . 90 95 119 . Shots Fired 194 | . 139 24 31 . Gun 168 | . 138 16 14 . Cannon 23 | . . 6 17 . Launcher 3 | . 1 2 . . Special . | . . . . . Kinetic 127 | . 97 13 17 . Thermal 64 | . 41 9 14 . Explosive 3 | . 1 2 . . Electromagnetic . | . . . . . Robot Hit Streak 10 | . 10 4 10 . Robot Miss Streak 6 | . 6 3 2 . Penetration Max . | . . . . . Secondary Targets 2 | . . 2 . . Max Gunslinging Chain 1 | . . 1 . . Shots Hit Robots 110 | . 80 10 20 . Core Hits 58 | . 41 6 11 . Critical Kills . | . . . . . Critical Parts Destroyed . | . . . . . Critical Strikes 3 | . 1 . 2 . Burn 3 | . 1 . 2 . Melee Attacks . | . . . . . Impact . | . . . . . Slashing . | . . . . . Piercing . | . . . . . Sneak Attacks . | . . . . . Combat Hostiles . | . . . . . Follow-up Attacks . | . . . . . Damage Inflicted 1767 | 10 931 373 453 . Guns 1134 | . 748 146 240 . Cannons 210 | . . . 210 . Explosions 332 | . 118 214 . . Melee . | . . . . . Ramming 91 | 10 65 13 3 . Kinetic 707 | . 477 20 210 . Thermal 637 | . 271 126 240 . Explosive 332 | . 118 214 . . Electromagnetic . | . . . . . Impact . | . . . . . Slashing . | . . . . . Piercing . | . . . . . Highest Corruption . | . . . . . Average Corruption . | . . . . . Corruption Purged . | . . . . . Corruption Blocked . | . . . . . Overload Shots . | . . . . . Overflow Damage 64 | . 10 54 . . Projectiles . | . . . . . Explosions 64 | . 10 54 . . Melee . | . . . . . Knockbacks 3 | . 1 . 2 . Impact 1 | . 1 . . . Kinetic 2 | . . . 2 . Secondary . | . . . . . Self-Inflicted Damage 120 | . 39 81 . . Shots 3 | . 1 2 . . Rammed 15 | . 10 4 1 . Targets Rammed 19 | 1 13 4 1 . Kicked 2 | 1 1 . . . Crushed 2 | . 2 . . . Highest Temperature 320 | . 120 320 105 . Average Temperature 48 | . 31 108 31 . Received Heat Transfer 414 | . 333 . 81 . Siege Activations . | . . . . . Robots Corrupted . | . . . . . Combat Hostiles . | . . . . . Parts Fried . | . . . . . Impact Corruptions . | . . . . . Robots Melted . | . . . . . Combat Hostiles . | . . . . . Parts Melted 3 | . 2 . 1 . Heat Transferred 1618 | . 841 222 555 . Parts Sabotaged . | . . . . . Parts Stolen . | . . . . . Parts Stripped . | . . . . . Power Chain Reactions . | . . . . . Alert | -11 -10 -10 -10 -8 ------- Run | Yrd Mat Min Sub Mat Peak Influence 200 | . 200 85 . . Initial 1 | . . 1 . . Average 30 | . 37 19 . . Maximum Alert Level 1 | . 1 . . . Low Security (%) 99 | 100 98 100 . . Level 1 . | . 1 . . . Level 2 . | . . . . . Level 3 . | . . . . . Level 4 . | . . . . . Level 5 . | . . . . . High Security . | . . . . . Max Security . | . . . . . Squads Dispatched 3 | . 3 . . . Investigation 2 | . 2 . . . Extermination . | . . . . . Reinforcement 1 | . 1 . . . Assault . | . . . . . Garrison . | . . . . . Intercept . | . . . . . Searches Triggered . | . . . . . Construction Impeded . | . . . . . Haulers Reinforced . | . . . . . Active Scanning Responses . | . . . . . Cargo Convoy Interrupts . | . . . . . Stealth | -11 -10 -10 -10 -8 --------- Run | Yrd Mat Min Sub Mat Distress Signals 1 | . 1 . . . Communications Jammed . | . . . . . Distress Signals . | . . . . . Times Spotted 37 | . 25 6 6 . Peak Tracking Total 5 | . 5 3 2 . Tactical Retreats 1 | . 1 . . . Traps | -11 -10 -10 -10 -8 ------- Run | Yrd Mat Min Sub Mat Traps Triggered 2 | . 2 . . . Indirectly . | . . . . . Trap Hack Attempts . | . . . . . Triggered . | . . . . . Disarmed . | . . . . . Reprogrammed . | . . . . . Reused . | . . . . . Traps Extracted . | . . . . . Installed . | . . . . . Triggered . | . . . . . Machines | -11 -10 -10 -10 -8 ---------- Run | Yrd Mat Min Sub Mat Machines Disabled . | . . . . . Max in Single Turn . | . . . . . Machines Repaired . | . . . . . Machines Dismantled . | . . . . . Machines Sabotaged . | . . . . . Overloaded Fab Kills . | . . . . . Hacking | -11 -10 -10 -10 -8 --------- Run | Yrd Mat Min Sub Mat Machines Accessed 3 | . 2 1 . . Terminals 2 | . 2 . . . Fabricators . | . . . . . Repair Stations . | . . . . . Recycling Units . | . . . . . Scanalyzers . | . . . . . Garrison Access . | . . . . . Total Hacks 9 | . 8 1 . . Successful 5 | . 4 1 . . Failed 4 | . 4 . . . Catastrophic 2 | . 2 . . . Database Lockouts . | . . . . . Manual 8 | . 8 . . . Terminals 8 | . 8 . . . Fabricators . | . . . . . Repair Stations . | . . . . . Recycling Units . | . . . . . Scanalyzers . | . . . . . Garrison Access . | . . . . . Terminal Hacks 5 | . 4 1 . . Robot Analysis 2 | . 2 . . . Open Door 1 | . . 1 . . Transport Status 1 | . 1 . . . Hauler Manifests 1 | . 1 . . . Fabricator Hacks . | . . . . . Repair Station Hacks . | . . . . . Recycling Unit Hacks . | . . . . . Scanalyzer . | . . . . . Garrison Access Hacks . | . . . . . Unauthorized Hacks . | . . . . . Terminals . | . . . . . Fabricators . | . . . . . Repair Stations . | . . . . . Recycling Units . | . . . . . Scanalyzers . | . . . . . Garrison Access . | . . . . . Data Cores Recovered . | . . . . . Used . | . . . . . Hacking Detections 2 | . 2 . . . Full Trace Events 1 | . 1 . . . Feedback Events . | . . . . . Feedback Blocked . | . . . . . Robot Schematics Acquired . | . . . . . Robots Built . | . . . . . Authchips . | . . . . . Time . | . . . . . Total Robot Build Rating . | . . . . . Part Schematics Acquired . | . . . . . Parts Built . | . . . . . Authchips . | . . . . . Time . | . . . . . Total Part Build Rating . | . . . . . Parts Repaired . | . . . . . Time . | . . . . . Parts Recycled . | . . . . . Recycled Matter . | . . . . . Retrieved Matter . | . . . . . Retrieved Components . | . . . . . Parts Scanalyzed . | . . . . . Part Schematics Acquired . | . . . . . Parts Damaged . | . . . . . Bothacking | -11 -10 -10 -10 -8 ------------ Run | Yrd Mat Min Sub Mat Used RIF Installer . | . . . . . Robots Hacked . | . . . . . Non-combat . | . . . . . Combat . | . . . . . Robot Hacks Applied . | . . . . . Relay Couplers Released . | . . . . . Fabnet Peak Effective % . | . . . . . Robots Rewired . | . . . . . Allies Hacked . | . . . . . Hacks Repelled . | . . . . . Allies | -11 -10 -10 -10 -8 -------- Run | Yrd Mat Min Sub Mat Total Allies . | . . . . . Largest Group . | . . . . . Highest-Rated Group . | . . . . . Highest-Rated Ally . | . . . . . Total Orders . | . . . . . Ally Attacks . | . . . . . Total Damage . | . . . . . Kills . | . . . . . Allies Corrupted . | . . . . . Allies Melted . | . . . . . Intel | -11 -10 -10 -10 -8 ------- Run | Yrd Mat Min Sub Mat Robot Analysis Total 2 | . 2 . . . Derelict Logs Recovered 3 | . . 2 1 . Drone Launches . | . . . . . Drone Recoveries . | . . . . . Exploration | -11 -10 -10 -10 -8 ------------- Run | Yrd Mat Min Sub Mat Turns Passed 5985 | 80 2479 1178 2248 . Spaces Moved 3013 | 55 1432 611 915 . Core 22 | 19 3 . . . Treads 2624 | . 1098 611 915 . Legs 367 | 36 331 . . . Wheels . | . . . . . Hover . | . . . . . Flight . | . . . . . Fastest Speed 50 | 50 120 160 240 . Average Speed 184 | 121 152 182 240 . Slowest Speed 500 | 150 500 240 240 . Overloaded Moves . | . . . . . Propulsion Burnouts . | . . . . . Robots Hopped . | . . . . . Cave-ins Triggered . | . . . . . Exploration Rate (%) 45 | 4 92 80 48 1 Regions Visited 4 Branch Regions 2 Pre-discovered Areas 3 | . . 2 1 . Known Exits Taken . | . . . . . Unknown Exits Taken 4 | 1 1 1 1 . Scrap Searched 7 | . . 2 5 . Spaces Dug . | . . . . . Terrain Destroyed 23 | . 9 13 1 . Melee . | . . . . . Projectile 1 | . . . 1 . AOE 22 | . 9 13 . . Terrain Rammed . | . . . . . Walls Destroyed . | . . . . . Machines Disabled . | . . . . . Actions | -11 -10 -10 -10 -8 --------- Run | Yrd Mat Min Sub Mat Total 3241 | 65 1593 647 936 . Wait 39 | . 32 4 3 . Move 3009 | 54 1431 610 914 . Hop . | . . . . . Pick Up 23 | 4 15 4 . . Fast Attach 16 | 6 9 1 . . Attach 5 | . 2 2 1 . Detach 3 | . 3 . . . Swap 10 | . 6 4 . . Drop 13 | . 10 3 . . Fire 104 | . 72 15 17 . Melee . | . . . . . Ram . | . . . . . Kick 2 | 1 1 . . . Crush 17 | . 12 4 1 . Escape Stasis . | . . . . . Rewire . | . . . . . Trap . | . . . . . Miscellaneous . | . . . . . Route ------- -11/Scrapyard -10/Materials (discovered 5 exits: *Mat x3 / *Min / [*Sub]) -10/Mines (discovered 2 exits: Mat / [*Sub]) -10/Subcaves -8/Materials History --------- Turn | Location | Event 29 | -11/Scrapyard | Discovered new exit (range 15) 81 | -11/Scrapyard | Entered Materials 315 | -10/Materials | Build established: Mutant 420 | -10/Materials | Discovered new exit (range 12) 501 | -10/Materials | Discovered new exit (range 16) 1009 | -10/Materials | Core integrity fell below 50% 1250 | -10/Materials | Discovered new exit (range 12) 1460 | -10/Materials | Discovered new exit (range 7) 2495 | -10/Materials | Discovered new exit (range 7) 2560 | -10/Materials | Entered Mines 2565 | -10/Mines | Learned location of Storage (-8) 2572 | -10/Mines | Identified exit to Materials 2577 | -10/Mines | Met a Derelict bent on vengeance 2786 | -10/Mines | Found a damaged Exp. Sensor Array with a note attached 3019 | -10/Mines | Learned location of Zion (-6) 3065 | -10/Mines | Met a Derelict who couldn't figure out how to use a Trap Extractor 3165 | -10/Mines | Core integrity fell below 20% 3681 | -10/Mines | Excavation squad dispatched 3681 | -10/Mines | A large section of the Mines collapsed 3719 | -10/Mines | Discovered new exit (range 6) 3738 | -10/Mines | Entered Subcaves 3857 | -10/Subcaves | Ambushed by Subdwellers from Twisted Machinery 4222 | -10/Subcaves | Disturbed a concealed Subdweller 5967 | -10/Subcaves | Discovered new exit (range 8) 5986 | -10/Subcaves | Entered Materials 5986 | -8/Materials | Evolved 4 slots: Propulsion x2, Utility x2 5986 | -8/Materials | Self-destructed Last Messages --------------- Cannon. 04430_ KL-2Q9(u) tweaks Twisted Machinery. 04674_ Acquired 13 matter. 04717_ Acquired 2 matter. 04820_ AR-G6R(O) wakes at your presence. 04820_ AR-G6R(O): "LVR3C?" 04820_ AR-G6R(O) collects matter. 04874_ AR-G6R(O) puts together Humpback. 04878_ AR-G6R(O) collects matter. 04914_ AR-G6R(O) puts together Riot Gun. 04946_ AR-G6R(O) collects matter. 04954_ AR-G6R(O) puts together Piercing Trap. 05016_ AR-G6R(O) collects matter. 05066_ AR-G6R(O) puts together Flamer. 05182_ Slammed into AR-G6R(O). 05262_ AR-G6R(O) collects matter. 05967_ EXIT=FOUND PARAMETERS=PROPULSION+2,UTILITY+2 LOCATION=UNKNOWN GOAL=ESCAPE Map ----- +----------------------------------------------------+ | | | | | | | | | | | | | | | | | | | | | | | | | | | | | | | | | ?????????????????????????????????????? | | ?????????????????????????????????????? | | ?????????????????????????????????????? | | ?????????????????????????????????????? | | ?????????????????????????????????????? | | ?????????????????????????????????????? | | ?????????????????????????????????????? | | ???????????###########+###???????????? | | ???????????# #??????????? | | ???????????# @ #??????????? | | ???????????# #??????????? | | ???????????####t####### #??????????? | | ???????????????##????????????????????? | | ?????????????????????????????????????? | | ?????????????????????????????????????? | | ?????????????????????????????????????? | | ?????????????????????????????????????? | | ?????????????????????????????????????? | | ?????????????????????????????????????? | | ?????????????????????????????????????? | | ?????????????????????????????????????? | | ?????????????????????????????????????? | | ?????????????????????????????????????? | | ?????????????????????????????????????? | | ?????????????????????????????????????? | | ?????????????????????????????????????? | | ?????????????????????????????????????? | | ?????????????????????????????????????? | | ?????????????????????????????????????? | | ?????????????????????????????????????? | | ?????????????????????????????????????? | | ?????????????????????????????????????? | | ?????????????????????????????????????? | | ?????????????????????????????????????? | +----------------------------------------------------+ Best States ------------- Heat Dissipation 25 Energy Generation 10 Energy Capacity 250 Matter Stores 300 Matter Capacity 300 Sight Range 16 Terrain Scan Density 10 Armor Coverage 150 Evasion (%) 55 Recoil Reduction 2 Item Schematics ----------------- None Robot Schematics ------------------ None Fabricated ------------ Nothing Alien Tech Used ----------------- None Achievements -------------- None Challenges ------------ None Game ------ Seed WeaponParticleRailgun Manual? 0 Play Time 00:19:00 Cumulative 23.7 hours Start 2024.07.17 @ 18:11:51 End 2024.07.17 @ 18:50:29 Sessions 3 Manual Loads 0 Difficulty Rogue Special Mode None Game No. 46 Rogue 46 Adventurer 0 Explorer 0 Win Type - Total 0 Types 0/0/0/0/0/0/0/0/0 Lore% 24 Gallery% 31 Achievement% 26 Wizard Run 0 Options --------- Layout 1 ASCII 0 Keyboard 0 Movement Arrows Keybinds 0 Fullscreen 1 Font 32/SmallcapsGlow Map View 50x35 Zoom Use 0% Tactical HUD 1 Map Filters NONE Filters NONE Steam 1 RUN: 5ca703eb-57b2-476a-a635-a5c6cbdd1693